[Event "Late-Titled-Tuesday-Blitz-June-18-2024"]
[Site "Chess.com"]
[Date "2024.06.18"]
[Round "11"]
[White "zverr1"]
[Black "HamedWafa4"]
[Result "0-1"]
[WhiteElo "2539"]
[BlackElo "2661"]
[TimeControl "180+1"]
[EndTime "16:05:43 PDT"]
[Termination "HamedWafa4 won by checkmate"]

1. e4 {[%clk 0:03:00.9]} 1... e6 {[%clk 0:02:56.4]} 2. d4 {[%clk 0:03:00.6]}
2... d5 {[%clk 0:02:56.4]} 3. Nc3 {[%clk 0:03:01.2]} 3... a6 {[%clk 0:02:52]} 4.
Nf3 {[%clk 0:02:54.5]} 4... Nc6 {[%clk 0:02:51.7]} 5. a3 {[%clk 0:02:50.6]} 5...
Nf6 {[%clk 0:02:40.6]} 6. Bg5 {[%clk 0:02:38.8]} 6... Be7 {[%clk 0:02:31.8]} 7.
e5 {[%clk 0:02:25.9]} 7... Ne4 {[%clk 0:02:20.2]} 8. Bxe7 {[%clk 0:02:25.3]}
8... Qxe7 {[%clk 0:02:20.7]} 9. Bd3 {[%clk 0:01:55.7]} 9... Nxc3 {[%clk
0:02:14.2]} 10. bxc3 {[%clk 0:01:56.6]} 10... Bd7 {[%clk 0:02:15]} 11. O-O
{[%clk 0:01:53.8]} 11... Na5 {[%clk 0:02:15.2]} 12. a4 {[%clk 0:01:47.9]} 12...
O-O {[%clk 0:02:13.6]} 13. Qe2 {[%clk 0:01:40.3]} 13... g6 {[%clk 0:02:11.4]}
14. c4 {[%clk 0:01:34.9]} 14... Qe8 {[%clk 0:02:06.3]} 15. cxd5 {[%clk
0:01:27.1]} 15... exd5 {[%clk 0:02:07.2]} 16. Qd2 {[%clk 0:00:49.9]} 16... b6
{[%clk 0:02:00.1]} 17. Qh6 {[%clk 0:00:48.5]} 17... Qe7 {[%clk 0:01:55.1]} 18.
Rfe1 {[%clk 0:00:41.3]} 18... f5 {[%clk 0:01:45.9]} 19. exf6 {[%clk 0:00:39.8]}
19... Qxf6 {[%clk 0:01:46.2]} 20. Re5 {[%clk 0:00:32.8]} 20... Bg4 {[%clk
0:01:44.2]} 21. Ng5 {[%clk 0:00:22.9]} 21... Qg7 {[%clk 0:01:44.1]} 22. Qxg7+
{[%clk 0:00:20.8]} 22... Kxg7 {[%clk 0:01:45]} 23. Rae1 {[%clk 0:00:06.6]} 23...
Nc6 {[%clk 0:01:43.1]} 24. Rxd5 {[%clk 0:00:06.3]} 24... Rae8 {[%clk 0:01:43.3]}
25. Rxe8 {[%clk 0:00:02.5]} 25... Rxe8 {[%clk 0:01:44.2]} 26. f3 {[%clk
0:00:03.3]} 26... Bc8 {[%clk 0:01:41.9]} 27. Be4 {[%clk 0:00:03.4]} 27... h6
{[%clk 0:01:39.9]} 28. Nh3 {[%clk 0:00:03.1]} 28... Be6 {[%clk 0:01:39.2]} 29.
Re5 {[%clk 0:00:01.3]} 29... Nxe5 {[%clk 0:01:39.1]} 30. dxe5 {[%clk 0:00:02]}
30... Bxh3 {[%clk 0:01:39.8]} 31. gxh3 {[%clk 0:00:02.9]} 31... Rxe5 {[%clk
0:01:40.4]} 32. Bd3 {[%clk 0:00:02.8]} 32... b5 {[%clk 0:01:39.9]} 33. axb5
{[%clk 0:00:02.2]} 33... a5 {[%clk 0:01:40.8]} 34. Kf2 {[%clk 0:00:01.8]} 34...
a4 {[%clk 0:01:41.3]} 35. f4 {[%clk 0:00:02.2]} 35... a3 {[%clk 0:01:41.5]} 36.
fxe5 {[%clk 0:00:01.6]} 36... a2 {[%clk 0:01:42]} 37. b6 {[%clk 0:00:01.5]}
37... cxb6 {[%clk 0:01:40.6]} 38. e6 {[%clk 0:00:01.1]} 38... a1=Q {[%clk
0:01:41.2]} 39. e7 {[%clk 0:00:01.3]} 39... Kf7 {[%clk 0:01:41.8]} 40. Bxg6+
{[%clk 0:00:01]} 40... Kxe7 {[%clk 0:01:41.5]} 41. Bd3 {[%clk 0:00:01.5]} 41...
Qc1 {[%clk 0:01:41.4]} 42. Kg3 {[%clk 0:00:01.7]} 42... b5 {[%clk 0:01:42.3]}
43. h4 {[%clk 0:00:01.6]} 43... b4 {[%clk 0:01:41.8]} 44. h5 {[%clk 0:00:02]}
44... b3 {[%clk 0:01:42.5]} 45. cxb3 {[%clk 0:00:02]} 45... Qe3+ {[%clk
0:01:43.2]} 46. Kg4 {[%clk 0:00:01.9]} 46... Qxd3 {[%clk 0:01:44.1]} 47. h4
{[%clk 0:00:02]} 47... Kf6 {[%clk 0:01:45]} 48. b4 {[%clk 0:00:01.9]} 48... Qe4+
{[%clk 0:01:45.6]} 49. Kg3 {[%clk 0:00:02]} 49... Qe3+ {[%clk 0:01:46]} 50. Kg4
{[%clk 0:00:02.2]} 50... Qe4+ {[%clk 0:01:46.6]} 51. Kg3 {[%clk 0:00:02.6]}
51... Kf5 {[%clk 0:01:47.5]} 52. b5 {[%clk 0:00:02.3]} 52... Qe3+ {[%clk
0:01:47.7]} 53. Kg2 {[%clk 0:00:02.4]} 53... Kg4 {[%clk 0:01:48.3]} 54. b6
{[%clk 0:00:03.3]} 54... Qe2+ {[%clk 0:01:48.8]} 55. Kh1 {[%clk 0:00:04.1]}
55... Kg3 {[%clk 0:01:49.7]} 56. b7 {[%clk 0:00:04.7]} 56... Qe1# {[%clk
0:01:50.6]} 0-1

[Event "Late-Titled-Tuesday-Blitz-June-18-2024"]
[Site "Chess.com"]
[Date "2024.06.18"]
[Round "11"]
[White "cthulhuuu"]
[Black "th3d4rkness"]
[Result "0-1"]
[WhiteElo "2395"]
[BlackElo "2260"]
[TimeControl "180+1"]
[EndTime "16:05:46 PDT"]
[Termination "th3d4rkness won by checkmate"]

1. e4 {[%clk 0:03:00.1]} 1... c5 {[%clk 0:02:59.2]} 2. Nf3 {[%clk 0:03:00.2]}
2... Nc6 {[%clk 0:02:53.7]} 3. d3 {[%clk 0:02:59.7]} 3... g6 {[%clk 0:02:50.5]}
4. g3 {[%clk 0:02:59.9]} 4... Bg7 {[%clk 0:02:50.6]} 5. Bg2 {[%clk 0:03:00.5]}
5... d6 {[%clk 0:02:51.2]} 6. O-O {[%clk 0:03:00.8]} 6... Bg4 {[%clk 0:02:51]}
7. h3 {[%clk 0:03:00.8]} 7... Bd7 {[%clk 0:02:51.2]} 8. Re1 {[%clk 0:03:01.2]}
8... Qc8 {[%clk 0:02:51.6]} 9. Kh2 {[%clk 0:03:01.9]} 9... Nf6 {[%clk
0:02:50.8]} 10. c3 {[%clk 0:03:02.1]} 10... O-O {[%clk 0:02:50.8]} 11. d4 {[%clk
0:03:02.5]} 11... cxd4 {[%clk 0:02:43.5]} 12. cxd4 {[%clk 0:03:03.4]} 12... e5
{[%clk 0:02:40.7]} 13. d5 {[%clk 0:03:03.1]} 13... Nd4 {[%clk 0:02:39.5]} 14.
Nxd4 {[%clk 0:03:01.1]} 14... exd4 {[%clk 0:02:39.5]} 15. Nd2 {[%clk 0:03:00.8]}
15... a5 {[%clk 0:02:24.5]} 16. Nb3 {[%clk 0:03:00.6]} 16... Ba4 {[%clk
0:02:23.7]} 17. Kg1 {[%clk 0:02:56.9]} 17... Nd7 {[%clk 0:02:22.2]} 18. Bg5
{[%clk 0:02:47.5]} 18... Re8 {[%clk 0:02:19.1]} 19. Rc1 {[%clk 0:02:44.7]} 19...
Nc5 {[%clk 0:02:14.2]} 20. Qd2 {[%clk 0:02:23]} 20... Bxb3 {[%clk 0:02:11.7]}
21. axb3 {[%clk 0:02:22]} 21... Qd7 {[%clk 0:02:11.9]} 22. Qd1 {[%clk
0:00:45.7]} 22... h6 {[%clk 0:02:09.3]} 23. Bf4 {[%clk 0:00:29.7]} 23... g5
{[%clk 0:02:08.7]} 24. Bd2 {[%clk 0:00:28.2]} 24... Nd3 {[%clk 0:02:08.2]} 25.
f4 {[%clk 0:00:20.9]} 25... Nxe1 {[%clk 0:01:56.8]} 26. Qxe1 {[%clk 0:00:19.6]}
26... gxf4 {[%clk 0:01:55.5]} 27. gxf4 {[%clk 0:00:18.5]} 27... b6 {[%clk
0:01:52.1]} 28. Qh4 {[%clk 0:00:17.9]} 28... Rac8 {[%clk 0:01:48.5]} 29. Rf1
{[%clk 0:00:17.9]} 29... Qe7 {[%clk 0:01:48]} 30. Qh5 {[%clk 0:00:17.1]} 30...
Rc2 {[%clk 0:01:46.4]} 31. Rf2 {[%clk 0:00:17.4]} 31... d3 {[%clk 0:01:44]} 32.
e5 {[%clk 0:00:07]} 32... dxe5 {[%clk 0:01:42.8]} 33. f5 {[%clk 0:00:07.4]}
33... Qf6 {[%clk 0:01:39.6]} 34. Be4 {[%clk 0:00:06.6]} 34... Rxb2 {[%clk
0:01:39.3]} 35. Rg2 {[%clk 0:00:03.2]} 35... Rxd2 {[%clk 0:01:32.7]} 36. Rxd2
{[%clk 0:00:03.3]} 36... Rc8 {[%clk 0:01:32.7]} 37. Rxd3 {[%clk 0:00:03]} 37...
Rc1+ {[%clk 0:01:31.7]} 38. Kg2 {[%clk 0:00:03.6]} 38... Rc2+ {[%clk 0:01:31.5]}
39. Kf3 {[%clk 0:00:03.6]} 39... Qd6 {[%clk 0:01:27.4]} 40. Kg3 {[%clk
0:00:01.7]} 40... Qc5 {[%clk 0:01:27]} 41. Kf3 {[%clk 0:00:02]} 41... Qf2+
{[%clk 0:01:26.1]} 42. Kg4 {[%clk 0:00:02]} 42... Qf4# {[%clk 0:01:24.7]} 0-1

[Event "Late-Titled-Tuesday-Blitz-June-18-2024"]
[Site "Chess.com"]
[Date "2024.06.18"]
[Round "11"]
[White "evgchess5"]
[Black "SpeedofLight0"]
[Result "0-1"]
[WhiteElo "2923"]
[BlackElo "3039"]
[TimeControl "180+1"]
[EndTime "16:05:51 PDT"]
[Termination "SpeedofLight0 won on time"]

1. e4 {[%clk 0:02:58.7]} 1... b6 {[%clk 0:02:57.8]} 2. d4 {[%clk 0:02:57.9]}
2... Bb7 {[%clk 0:02:58.3]} 3. Bd3 {[%clk 0:02:57.8]} 3... e6 {[%clk 0:02:58.6]}
4. Nf3 {[%clk 0:02:57.5]} 4... Nf6 {[%clk 0:02:58.8]} 5. Qe2 {[%clk 0:02:56.2]}
5... d5 {[%clk 0:02:59.5]} 6. e5 {[%clk 0:02:54]} 6... Nfd7 {[%clk 0:02:59]} 7.
O-O {[%clk 0:02:47.9]} 7... Qc8 {[%clk 0:02:59]} 8. Ng5 {[%clk 0:02:30]} 8...
Be7 {[%clk 0:02:44.1]} 9. Nxh7 {[%clk 0:02:04.7]} 9... c5 {[%clk 0:02:38.2]} 10.
Qh5 {[%clk 0:01:46.2]} 10... g6 {[%clk 0:02:28.1]} 11. Bxg6 {[%clk 0:01:43.9]}
11... fxg6 {[%clk 0:02:28.1]} 12. Qxg6+ {[%clk 0:01:44]} 12... Kd8 {[%clk
0:02:28.8]} 13. Ng5 {[%clk 0:01:40]} 13... Nf8 {[%clk 0:02:24.3]} 14. Qg7 {[%clk
0:01:27.4]} 14... Rh4 {[%clk 0:02:12.8]} 15. Nf7+ {[%clk 0:01:16]} 15... Kc7
{[%clk 0:02:12.7]} 16. Nc3 {[%clk 0:00:34.2]} 16... Ba6 {[%clk 0:02:02.8]} 17.
Bg5 {[%clk 0:00:30.8]} 17... Rh7 {[%clk 0:02:02.3]} 18. Qg8 {[%clk 0:00:26.5]}
18... Qe8 {[%clk 0:01:50.1]} 19. Nd6 {[%clk 0:00:18.1]} 19... Qh5 {[%clk
0:00:58.6]} 20. Bf4 {[%clk 0:00:18]} 20... Qg6 {[%clk 0:00:42.3]} 21. Nxd5+
{[%clk 0:00:13.2]} 21... exd5 {[%clk 0:00:38.2]} 22. Qxd5 {[%clk 0:00:13.8]}
22... Nc6 {[%clk 0:00:29.5]} 0-1

[Event "Late-Titled-Tuesday-Blitz-June-18-2024"]
[Site "Chess.com"]
[Date "2024.06.18"]
[Round "11"]
[White "Slovineanu"]
[Black "Meri-Arabidze"]
[Result "0-1"]
[WhiteElo "2564"]
[BlackElo "2688"]
[TimeControl "180+1"]
[EndTime "16:05:56 PDT"]
[Termination "Meri-Arabidze won by resignation"]

1. d4 {[%clk 0:02:56.8]} 1... Nf6 {[%clk 0:02:59.8]} 2. Nf3 {[%clk 0:02:55.6]}
2... e6 {[%clk 0:03:00]} 3. c4 {[%clk 0:02:55.6]} 3... Bb4+ {[%clk 0:02:59.7]}
4. Nbd2 {[%clk 0:02:55.3]} 4... O-O {[%clk 0:02:58.7]} 5. e3 {[%clk 0:02:55.6]}
5... b6 {[%clk 0:02:51.1]} 6. Bd3 {[%clk 0:02:54.6]} 6... Bb7 {[%clk 0:02:49.5]}
7. O-O {[%clk 0:02:55.1]} 7... d5 {[%clk 0:02:49.3]} 8. a3 {[%clk 0:02:55.1]}
8... Bd6 {[%clk 0:02:48.7]} 9. b4 {[%clk 0:02:41.9]} 9... c6 {[%clk 0:02:48.6]}
10. Bb2 {[%clk 0:02:38.6]} 10... Nbd7 {[%clk 0:02:46.3]} 11. Qe2 {[%clk
0:02:35.8]} 11... c5 {[%clk 0:02:35.1]} 12. dxc5 {[%clk 0:02:33.8]} 12... bxc5
{[%clk 0:02:35.6]} 13. b5 {[%clk 0:02:34.4]} 13... h6 {[%clk 0:02:15.2]} 14. a4
{[%clk 0:02:31.4]} 14... a6 {[%clk 0:02:15.4]} 15. Nb3 {[%clk 0:02:27.4]} 15...
axb5 {[%clk 0:01:56.1]} 16. axb5 {[%clk 0:02:26.3]} 16... Nb6 {[%clk 0:01:56.3]}
17. Ne5 {[%clk 0:02:08.5]} 17... Na4 {[%clk 0:01:46.6]} 18. Nc6 {[%clk
0:01:34.3]} 18... Bxc6 {[%clk 0:01:46.1]} 19. Bxf6 {[%clk 0:01:31.5]} 19... Qxf6
{[%clk 0:01:37.9]} 20. bxc6 {[%clk 0:01:31.8]} 20... Nc3 {[%clk 0:01:20.9]} 21.
Qf3 {[%clk 0:01:25.3]} 21... Qe5 {[%clk 0:01:15.6]} 22. g3 {[%clk 0:01:18.3]}
22... Rac8 {[%clk 0:01:11.5]} 23. Na5 {[%clk 0:01:12.3]} 23... Rc7 {[%clk
0:00:56.2]} 24. Rfc1 {[%clk 0:01:08.2]} 24... Rfc8 {[%clk 0:00:54.8]} 25. Ra3
{[%clk 0:00:52.8]} 25... d4 {[%clk 0:00:55]} 26. exd4 {[%clk 0:00:46.1]} 26...
cxd4 {[%clk 0:00:55.9]} 27. Rb3 {[%clk 0:00:45.9]} 27... Qxa5 {[%clk 0:00:54.2]}
28. Rb7 {[%clk 0:00:43.1]} 28... Qc5 {[%clk 0:00:45.6]} 29. Ra1 {[%clk
0:00:22.4]} 29... Qxc6 {[%clk 0:00:39.8]} 30. Qxc6 {[%clk 0:00:20]} 30... Rxc6
{[%clk 0:00:40.7]} 31. Raa7 {[%clk 0:00:19.8]} 31... R6c7 {[%clk 0:00:39.3]} 32.
Rxc7 {[%clk 0:00:14.6]} 32... Bxc7 {[%clk 0:00:39.5]} 33. Be4 {[%clk 0:00:11.9]}
33... Nxe4 {[%clk 0:00:39.1]} 0-1

[Event "Late-Titled-Tuesday-Blitz-June-18-2024"]
[Site "Chess.com"]
[Date "2024.06.18"]
[Round "11"]
[White "KamilaHryshchenko"]
[Black "kalinchick"]
[Result "0-1"]
[WhiteElo "2173"]
[BlackElo "2373"]
[TimeControl "180+1"]
[EndTime "16:05:56 PDT"]
[Termination "kalinchick won on time"]

1. e4 {[%clk 0:02:59.8]} 1... e6 {[%clk 0:02:56.1]} 2. d4 {[%clk 0:02:58.8]}
2... d5 {[%clk 0:02:56.6]} 3. Nc3 {[%clk 0:02:58.1]} 3... dxe4 {[%clk
0:02:54.2]} 4. Nxe4 {[%clk 0:02:57.6]} 4... Nd7 {[%clk 0:02:55.1]} 5. Bg5 {[%clk
0:02:56]} 5... Ngf6 {[%clk 0:02:56]} 6. Nf3 {[%clk 0:02:49.4]} 6... Be7 {[%clk
0:02:53.8]} 7. Bxf6 {[%clk 0:02:47.5]} 7... Nxf6 {[%clk 0:02:53.6]} 8. Bd3
{[%clk 0:02:44.9]} 8... O-O {[%clk 0:02:47.1]} 9. Qd2 {[%clk 0:02:43.3]} 9...
Rb8 {[%clk 0:02:42.5]} 10. h4 {[%clk 0:02:39.5]} 10... b5 {[%clk 0:02:38.2]} 11.
Nxf6+ {[%clk 0:02:35.6]} 11... Bxf6 {[%clk 0:02:37.9]} 12. Ng5 {[%clk
0:02:35.8]} 12... h6 {[%clk 0:02:21.2]} 13. Nh7 {[%clk 0:02:06.9]} 13... Re8
{[%clk 0:02:17]} 14. Nxf6+ {[%clk 0:02:00.8]} 14... Qxf6 {[%clk 0:02:17.9]} 15.
O-O-O {[%clk 0:01:56.4]} 15... Bb7 {[%clk 0:02:15.7]} 16. f3 {[%clk 0:01:49.9]}
16... Bd5 {[%clk 0:02:02.6]} 17. Kb1 {[%clk 0:01:47.1]} 17... b4 {[%clk
0:01:56.2]} 18. Rdf1 {[%clk 0:01:42.7]} 18... Kf8 {[%clk 0:01:53.7]} 19. Qe3
{[%clk 0:01:39.5]} 19... Rb6 {[%clk 0:01:36.8]} 20. g4 {[%clk 0:01:38]} 20... e5
{[%clk 0:01:36.9]} 21. g5 {[%clk 0:01:34.6]} 21... Qf4 {[%clk 0:01:36]} 22. Qf2
{[%clk 0:00:31.1]} 22... Qxd4 {[%clk 0:01:32.6]} 23. Qg3 {[%clk 0:00:27]} 23...
Qf4 {[%clk 0:01:24.5]} 24. Qg2 {[%clk 0:00:24.4]} 24... h5 {[%clk 0:01:06.8]}
25. g6 {[%clk 0:00:22.7]} 25... f6 {[%clk 0:01:06.1]} 26. Rh3 {[%clk 0:00:17.4]}
26... a5 {[%clk 0:01:02.1]} 27. Qe2 {[%clk 0:00:17.3]} 27... a4 {[%clk
0:00:51.6]} 28. Be4 {[%clk 0:00:16.7]} 28... Be6 {[%clk 0:00:40.7]} 29. Qf2
{[%clk 0:00:13.1]} 29... Bxh3 {[%clk 0:00:38.1]} 0-1

[Event "Late-Titled-Tuesday-Blitz-June-18-2024"]
[Site "Chess.com"]
[Date "2024.06.18"]
[Round "11"]
[White "JoakimVonAnd"]
[Black "subham777"]
[Result "1-0"]
[WhiteElo "2744"]
[BlackElo "2620"]
[TimeControl "180+1"]
[EndTime "16:06:00 PDT"]
[Termination "JoakimVonAnd won by resignation"]

1. d4 {[%clk 0:03:00.9]} 1... d5 {[%clk 0:02:58.5]} 2. c4 {[%clk 0:03:00]} 2...
e6 {[%clk 0:02:56.3]} 3. Nc3 {[%clk 0:02:59.9]} 3... Nf6 {[%clk 0:02:51.7]} 4.
cxd5 {[%clk 0:02:59.9]} 4... exd5 {[%clk 0:02:52.5]} 5. Bg5 {[%clk 0:02:59.7]}
5... c6 {[%clk 0:02:50.8]} 6. e3 {[%clk 0:02:59.6]} 6... Bd6 {[%clk 0:02:49.3]}
7. Bd3 {[%clk 0:02:58.6]} 7... O-O {[%clk 0:02:45.1]} 8. Qc2 {[%clk 0:02:48.6]}
8... h6 {[%clk 0:02:44.9]} 9. Bh4 {[%clk 0:02:48.8]} 9... a5 {[%clk 0:02:42.4]}
10. Nf3 {[%clk 0:02:44.2]} 10... Na6 {[%clk 0:02:41.2]} 11. a3 {[%clk
0:02:43.5]} 11... Re8 {[%clk 0:02:41.3]} 12. O-O {[%clk 0:02:40.1]} 12... Bg4
{[%clk 0:02:41]} 13. Nd2 {[%clk 0:02:14]} 13... Bd7 {[%clk 0:02:39.3]} 14. h3
{[%clk 0:02:06.4]} 14... g5 {[%clk 0:02:27.2]} 15. Bg3 {[%clk 0:02:05.3]} 15...
Bxg3 {[%clk 0:02:27.8]} 16. fxg3 {[%clk 0:02:06.2]} 16... Rxe3 {[%clk 0:02:28]}
17. g4 {[%clk 0:02:06.3]} 17... Qe7 {[%clk 0:02:21.9]} 18. Nf3 {[%clk 0:02:04]}
18... c5 {[%clk 0:01:57.1]} 19. Rad1 {[%clk 0:01:46]} 19... c4 {[%clk
0:01:49.1]} 20. Bf5 {[%clk 0:01:42.5]} 20... Nc7 {[%clk 0:01:40]} 21. Ne5 {[%clk
0:01:39.4]} 21... Bxf5 {[%clk 0:01:30.8]} 22. Qxf5 {[%clk 0:01:38.3]} 22... Kg7
{[%clk 0:01:29.1]} 23. Rf2 {[%clk 0:01:26]} 23... Rd8 {[%clk 0:01:18.8]} 24.
Rdf1 {[%clk 0:01:24.1]} 24... Rd6 {[%clk 0:01:19.3]} 25. Qc8 {[%clk 0:01:09.4]}
25... Nce8 {[%clk 0:01:11.6]} 26. Nb5 {[%clk 0:00:59.9]} 26... Rd8 {[%clk
0:01:07.1]} 27. Qf5 {[%clk 0:00:53.5]} 27... Rb3 {[%clk 0:00:50.9]} 28. a4
{[%clk 0:00:53.4]} 28... Re3 {[%clk 0:00:44.4]} 29. h4 {[%clk 0:00:51.8]} 29...
Ne4 {[%clk 0:00:24.8]} 30. Qxf7+ {[%clk 0:00:47.9]} 30... Qxf7 {[%clk
0:00:25.2]} 31. Rxf7+ {[%clk 0:00:47.9]} 31... Kg8 {[%clk 0:00:21.4]} 32. Rf8+
{[%clk 0:00:45.7]} 32... Kh7 {[%clk 0:00:21]} 33. R1f7+ {[%clk 0:00:44]} 33...
Ng7 {[%clk 0:00:21.3]} 34. Rxd8 {[%clk 0:00:42.6]} 34... Re1+ {[%clk 0:00:15.8]}
35. Kh2 {[%clk 0:00:41.6]} 35... gxh4 {[%clk 0:00:15.6]} 36. Rdd7 {[%clk
0:00:39.8]} 1-0

[Event "Late-Titled-Tuesday-Blitz-June-18-2024"]
[Site "Chess.com"]
[Date "2024.06.18"]
[Round "11"]
[White "aot317"]
[Black "DeArron_Fox"]
[Result "0-1"]
[WhiteElo "2539"]
[BlackElo "2475"]
[TimeControl "180+1"]
[EndTime "16:06:00 PDT"]
[Termination "DeArron_Fox won on time"]

1. d4 {[%clk 0:00:17.3]} 1... d5 {[%clk 0:02:00.1]} 2. c4 {[%clk 0:00:16.5]}
2... e6 {[%clk 0:02:00.2]} 3. Nf3 {[%clk 0:00:17]} 3... Nf6 {[%clk 0:02:00.2]}
4. g3 {[%clk 0:00:17.6]} 4... Be7 {[%clk 0:02:00.8]} 5. Bg2 {[%clk 0:00:18.1]}
5... O-O {[%clk 0:02:01.5]} 6. O-O {[%clk 0:00:18.8]} 6... c6 {[%clk 0:02:02.1]}
7. b3 {[%clk 0:00:18.3]} 7... b6 {[%clk 0:02:02.5]} 8. Ba3 {[%clk 0:00:18.4]}
8... Ba6 {[%clk 0:02:00.3]} 9. Bxe7 {[%clk 0:00:18.4]} 9... Qxe7 {[%clk
0:02:01.2]} 10. Ne5 {[%clk 0:00:18.9]} 10... Nfd7 {[%clk 0:01:56]} 11. cxd5
{[%clk 0:00:18.6]} 11... cxd5 {[%clk 0:01:55.6]} 12. Nd3 {[%clk 0:00:18.1]}
12... Nc6 {[%clk 0:01:54.4]} 13. e3 {[%clk 0:00:18.5]} 13... Nb4 {[%clk
0:01:50.7]} 14. Nxb4 {[%clk 0:00:18.5]} 14... Qxb4 {[%clk 0:01:51.6]} 15. Re1
{[%clk 0:00:19]} 15... Rac8 {[%clk 0:01:50.8]} 16. a3 {[%clk 0:00:18.5]} 16...
Qd6 {[%clk 0:01:48.9]} 17. Ra2 {[%clk 0:00:15.6]} 17... Nf6 {[%clk 0:01:47.6]}
18. Rc2 {[%clk 0:00:14.2]} 18... Ne4 {[%clk 0:01:47]} 19. Bxe4 {[%clk
0:00:13.6]} 19... dxe4 {[%clk 0:01:47.9]} 20. Qd2 {[%clk 0:00:11.8]} 20... Rxc2
{[%clk 0:01:45.7]} 21. Qxc2 {[%clk 0:00:12.4]} 21... Bd3 {[%clk 0:01:44.5]} 22.
Qc3 {[%clk 0:00:09.8]} 22... h5 {[%clk 0:01:39.7]} 23. b4 {[%clk 0:00:06.3]}
23... h4 {[%clk 0:01:39.9]} 24. Nd2 {[%clk 0:00:03.9]} 24... Qd5 {[%clk
0:01:39.3]} 25. Rc1 {[%clk 0:00:03.8]} 25... Qf5 {[%clk 0:01:36.9]} 26. f3
{[%clk 0:00:02.3]} 26... exf3 {[%clk 0:01:35.5]} 27. Kf2 {[%clk 0:00:01.3]}
27... Be2 {[%clk 0:01:32.6]} 28. e4 {[%clk 0:00:01]} 28... Qh3 {[%clk
0:01:32.3]} 29. gxh4 {[%clk 0:00:01]} 29... Qxh2+ {[%clk 0:01:32.3]} 30. Ke3
{[%clk 0:00:01.7]} 30... f5 {[%clk 0:01:25.3]} 31. exf5 {[%clk 0:00:01.3]} 31...
Rxf5 {[%clk 0:01:23.2]} 32. Qc8+ {[%clk 0:00:01.8]} 32... Kh7 {[%clk 0:01:22.4]}
33. Qc7 {[%clk 0:00:01.4]} 33... Qxh4 {[%clk 0:01:16.1]} 34. Rg1 {[%clk
0:00:01.6]} 34... Qh6+ {[%clk 0:01:13.2]} 35. Kf2 {[%clk 0:00:01.5]} 35... Qf6
{[%clk 0:00:52.9]} 36. Ne4 {[%clk 0:00:01.4]} 36... Qxd4+ {[%clk 0:00:52.9]} 0-1

[Event "Late-Titled-Tuesday-Blitz-June-18-2024"]
[Site "Chess.com"]
[Date "2024.06.18"]
[Round "11"]
[White "esskeettit"]
[Black "RantomOpening"]
[Result "1-0"]
[WhiteElo "2535"]
[BlackElo "2607"]
[TimeControl "180+1"]
[EndTime "16:06:04 PDT"]
[Termination "esskeettit won by resignation"]

1. d4 {[%clk 0:03:00.9]} 1... c5 {[%clk 0:02:58.2]} 2. d5 {[%clk 0:03:00.1]}
2... e5 {[%clk 0:02:58.4]} 3. c4 {[%clk 0:02:58.5]} 3... d6 {[%clk 0:02:58.7]}
4. Nc3 {[%clk 0:02:58.6]} 4... f5 {[%clk 0:02:59.1]} 5. e4 {[%clk 0:02:58]} 5...
Nf6 {[%clk 0:02:59.5]} 6. Bd3 {[%clk 0:02:56.9]} 6... f4 {[%clk 0:02:59]} 7. g3
{[%clk 0:02:48.5]} 7... Bg4 {[%clk 0:02:58.6]} 8. f3 {[%clk 0:02:43]} 8... fxg3
{[%clk 0:02:58.3]} 9. hxg3 {[%clk 0:02:40.6]} 9... Bh5 {[%clk 0:02:57.8]} 10.
Be3 {[%clk 0:02:35.9]} 10... Be7 {[%clk 0:02:57.3]} 11. Qd2 {[%clk 0:02:35.5]}
11... O-O {[%clk 0:02:57]} 12. O-O-O {[%clk 0:02:34.7]} 12... a6 {[%clk
0:02:56.8]} 13. g4 {[%clk 0:01:52.7]} 13... Bg6 {[%clk 0:02:56.8]} 14. Nh3
{[%clk 0:01:52.7]} 14... b5 {[%clk 0:02:57]} 15. Ng5 {[%clk 0:01:49.4]} 15...
Qa5 {[%clk 0:02:42.7]} 16. Ne6 {[%clk 0:01:41.2]} 16... Rf7 {[%clk 0:02:35.2]}
17. Kb1 {[%clk 0:01:39.3]} 17... Nbd7 {[%clk 0:02:34.1]} 18. cxb5 {[%clk
0:01:09.7]} 18... axb5 {[%clk 0:02:33.1]} 19. Bxb5 {[%clk 0:01:10.6]} 19... Nb6
{[%clk 0:02:26.5]} 20. Bc6 {[%clk 0:01:09.7]} 20... Ra7 {[%clk 0:02:22.2]} 21.
Qd3 {[%clk 0:00:55.6]} 21... Nfd7 {[%clk 0:02:04.5]} 22. Rhf1 {[%clk 0:00:38.6]}
22... Nb8 {[%clk 0:02:04]} 23. Qb5 {[%clk 0:00:34.2]} 23... Nxc6 {[%clk
0:02:02.6]} 24. dxc6 {[%clk 0:00:33.5]} 24... Nc8 {[%clk 0:01:48.4]} 25. Qxa5
{[%clk 0:00:27.6]} 25... Rxa5 {[%clk 0:01:49.3]} 26. Nd5 {[%clk 0:00:26.7]}
26... Rxf3 {[%clk 0:01:40.3]} 27. Rxf3 {[%clk 0:00:21.4]} 27... Bxe4+ {[%clk
0:01:40.6]} 28. Kc1 {[%clk 0:00:11.2]} 28... Bxf3 {[%clk 0:01:40.7]} 29. Nxe7+
{[%clk 0:00:11]} 29... Nxe7 {[%clk 0:01:41.6]} 30. Rxd6 {[%clk 0:00:11.2]} 30...
Bxc6 {[%clk 0:01:41.6]} 31. Bxc5 {[%clk 0:00:08.3]} 31... Rxa2 {[%clk
0:01:35.8]} 32. Rd8+ {[%clk 0:00:06.2]} 32... Kf7 {[%clk 0:01:36]} 33. Ng5+
{[%clk 0:00:06.3]} 33... Kg6 {[%clk 0:01:35.7]} 34. Bxe7 {[%clk 0:00:06.6]}
34... Ra1+ {[%clk 0:01:34.1]} 35. Kd2 {[%clk 0:00:06.3]} 35... Rf1 {[%clk
0:01:09.1]} 36. Rd6+ {[%clk 0:00:06.4]} 36... Rf6 {[%clk 0:01:10]} 37. Bxf6
{[%clk 0:00:06.8]} 37... gxf6 {[%clk 0:01:10.9]} 38. Rxc6 {[%clk 0:00:07.3]}
38... Kxg5 {[%clk 0:01:11.3]} 39. b4 {[%clk 0:00:06.5]} 39... Kxg4 {[%clk
0:01:11.5]} 40. Rxf6 {[%clk 0:00:06.4]} 40... h5 {[%clk 0:01:11.6]} 41. b5
{[%clk 0:00:06.8]} 41... Kg5 {[%clk 0:01:11.9]} 42. Rf8 {[%clk 0:00:06.8]} 42...
h4 {[%clk 0:01:11.8]} 43. b6 {[%clk 0:00:07.3]} 43... Kg6 {[%clk 0:01:11.7]} 44.
Rh8 {[%clk 0:00:07.7]} 44... Kf5 {[%clk 0:01:11.2]} 45. Rxh4 {[%clk 0:00:07.6]}
45... Ke6 {[%clk 0:01:12.1]} 46. b7 {[%clk 0:00:07.9]} 46... Kd6 {[%clk
0:01:12.4]} 47. b8=Q+ {[%clk 0:00:08.3]} 1-0